bitfinex/quotes_SOLUSD_20251212
["timestamp","ask_amount","ask_price","bid_price","bid_amount"]
[1765580691822,20.57175242,132.9,132.87,73.44147716]
[1765580692128,0.7,132.89,132.87,65.24533515]
[1765580693426,0.7,132.89,132.87,62.2]
[1765580693602,0.7,132.89,132.87,65.24533515]
[1765580693804,8.22466122,132.9,132.87,65.91533515]
[1765580694004,0.7,132.9,132.88,3.04533515]
[1765580696236,0.7,132.9,132.87,73.4413771]
[1765580696432,0.7,132.9,132.88,3.04533515]
[1765580696737,8.22479496,132.9,132.87,62.2]
[1765580697138,0.7,132.89,132.87,62.2]
[1765580702334,0.7,132.9,132.88,0.67]
[1765580702510,0.7,132.9,132.87,74.48511986]
[1765580702718,0.7,132.9,132.87,75.15511986]
[1765580704944,8.2245154,132.9,132.87,75.15511986]
[1765580705150,0.7,132.89,132.87,75.15511986]
[1765580705320,0.7,132.89,132.87,62.2]
[1765580705848,8.2245154,132.9,132.87,62.87]
[1765580706638,0.7,132.89,132.87,62.2]
[1765580707339,0.7,132.89,132.87,66.95913823]
[1765580707570,8.2245154,132.9,132.87,67.62913823]
[1765580708249,7.5245154,132.9,132.87,67.62913823]
[1765580708451,0.7,132.89,132.87,67.62913823]
[1765580709019,7.5245154,132.9,132.87,67.62913823]
[1765580709326,8.24,132.91,132.88,5.42913823]
[1765580709519,0.7,132.91,132.88,5.42913823]
[1765580709719,28.81004814,132.93,132.89,4.75913823]
[1765580709950,4.36234725,132.92,132.9,5.42913823]
[1765580710152,4.36234725,132.91,132.9,5.42913823]
[1765580710956,4.36234725,132.91,132.9,12.9535927]
[1765580712857,0.7,132.94,132.9,12.9535927]
[1765580713167,0.7,132.96,132.92,4.75913823]
[1765580713475,5.12426554,132.95,132.92,4.75913823]
[1765580713648,4.42426554,132.94,132.92,0.67]
[1765580713844,0.7,132.94,132.91,5.42913823]
[1765580714359,0.7,132.94,132.91,7.52340118]
[1765580715269,4.40052412,132.93,132.91,7.52340118]
[1765580715554,0.7,132.94,132.91,69.72340118]
[1765580715763,4.40052412,132.93,132.91,69.72340118]
[1765580715942,0.7,132.94,132.91,69.72340118]
[1765580716143,4.40052416,132.93,132.91,69.72340118]
[1765580716454,0.7,132.94,132.91,69.72340118]
[1765580716661,4.40073934,132.93,132.91,69.72340118]
[1765580716853,0.7,132.94,132.91,69.72340118]
[1765580717061,4.40073934,132.93,132.91,69.72340118]
[1765580717362,0.7,132.94,132.91,70.39340118]
[1765580717572,4.40095847,132.93,132.91,70.39340118]
[1765580717760,0.7,132.94,132.91,70.39340118]
[1765580717955,4.40095847,132.93,132.91,70.39340118]
[1765580718264,0.7,132.94,132.91,75.150019]
[1765580719267,0.7,132.94,132.91,70.39340118]
[1765580720666,0.7,132.94,132.91,75.150019]
[1765580720971,0.7,132.94,132.91,70.39340118]
[1765580721672,0.7,132.94,132.91,69.72340118]
[1765580721874,12.27789997,132.96,132.93,4.75661782]
[1765580721875,0.7,132.96,132.93,4.75661782]
[1765580722176,0.7,132.96,132.93,66.95661782]
[1765580722376,0.1,132.97,132.94,0.68]
[1765580722870,0.1,132.97,132.95,4.75661782]
[1765580723059,0.1,132.97,132.96,5.43661782]
[1765580723769,0.1,132.97,132.96,88.92370902]
[1765580723958,0.1,132.97,132.96,96.44476798]
[1765580724572,0.1,132.98,132.97,0.28432314]
[1765580724573,1e-08,132.98,132.97,0.28432314]
[1765580724773,4.75661782,133.05,132.97,0.28432314]
[1765580724774,0.7,133.06,133.0,13.0470912]
[1765580724972,4.58318408,133.05,133.02,4.75661782]
[1765580725162,4.75661782,133.05,133.01,8.24]
[1765580725362,0.7,133.04,133.0,0.68]
[1765580726044,0.7,133.04,133.01,7.51823171]
[1765580726244,4.75661782,133.06,133.01,26.31381098]
[1765580726464,21.95703612,133.08,133.02,0.68]
[1765580726465,0.7,133.05,133.02,0.68]
[1765580727047,0.7,133.05,133.02,5.43661782]
[1765580727653,0.7,133.05,133.02,0.68]
[1765580728050,0.7,133.05,133.03,7.5171014]
[1765580728569,4.75661782,133.04,132.99,32.47443969]
[1765580728878,4.75661782,133.04,132.99,89.91782187]
[1765580729085,4.75661782,133.04,132.99,71.12]
[1765580729086,0.7,133.03,132.99,71.12]
[1765580729251,5.45661782,133.03,132.99,71.12]
[1765580729450,0.7,133.03,133.01,7.51789255]
[1765580730855,0.7,133.04,133.01,8.19789255]
[1765580731260,0.7,133.04,133.01,7.51789255]
[1765580731476,8.24,133.06,133.02,5.43661782]
[1765580731668,0.7,133.05,133.02,5.43661782]
[1765580732271,0.7,133.05,133.02,12.95385463]
[1765580732664,0.7,133.06,133.03,0.68]
[1765580733063,0.7,133.06,133.02,31.74802092]
[1765580733475,0.7,133.06,133.02,12.27385463]
[1765580733858,0.7,133.06,133.02,12.95385463]
[1765580736282,0.8,133.08,133.05,4.75661782]
[1765580737182,0.1,133.08,133.06,0.68]
[1765580737485,0.1,133.08,133.05,0.68]
[1765580737656,0.1,133.08,133.06,5.43661782]
[1765580737857,0.1,133.08,133.07,4.75661782]
[1765580738082,0.1,133.08,133.06,13.67661782]
[1765580738386,0.1,133.08,133.07,7.51484181]
[1765580739563,5.55661782,133.08,133.02,70.64583354]
[1765580739787,4.75661782,133.07,133.02,13.67661782]
[1765580740087,5.45661782,133.07,133.03,0.68]
[1765580740293,5.45661782,133.06,133.03,8.19687686]
[1765580740491,5.45661782,133.06,133.04,7.51653538]
[1765580742194,0.7,133.06,133.04,7.51653538]
[1765580743097,0.7,133.06,133.04,69.71653538]
[1765580744377,5.45661782,133.06,133.03,7.51706596]
[1765580746372,5.45661782,133.06,133.03,8.19706596]
[1765580747582,0.7,133.06,133.03,8.19706596]
[1765580747881,0.1,133.08,133.04,5.43661782]
[1765580748198,0.1,133.08,133.05,8.24]
[1765580748503,0.1,133.08,133.06,4.74614501]
[1765580748793,0.1,133.08,133.06,5.42614501]
[1765580749011,0.1,133.08,133.07,0.68]
[1765580749720,0.1,133.08,133.06,8.19540658]
[1765580751113,0.1,133.08,133.05,77.95577426]
[1765580751314,0.1,133.08,133.05,78.66577426]
[1765580751991,0.81,133.08,133.05,78.66577426]
[1765580754115,5.55614501,133.08,133.05,77.95577426]
[1765580755124,0.1,133.08,133.06,5.45614501]
[1765580755318,0.1,133.08,133.07,7.51484181]
[1765580755503,0.1,133.08,133.07,0.71]
[1765580757117,0.1,133.08,133.06,7.51515103]
[1765580757611,0.1,133.08,133.06,8.22515103]
[1765580758624,0.1,133.08,133.06,12.97129604]
[1765580759319,0.1,133.08,133.07,4.74614501]
[1765580759534,0.81,133.08,133.06,12.26129604]
[1765580760213,0.81,133.08,133.05,15.7558043]
[1765580760631,0.81,133.08,133.06,7.51529838]
[1765580761228,0.81,133.08,133.05,74.46186502]
[1765580761616,0.81,133.08,133.05,69.71572001]
[1765580762430,0.81,133.08,133.05,74.46186502]
[1765580762637,0.81,133.08,133.05,75.17186502]
[1765580763228,0.81,133.08,133.05,74.46186502]
[1765580763917,0.81,133.08,133.05,72.75341204]
[1765580764230,4.63547256,133.07,133.05,72.75341204]
[1765580764433,0.81,133.08,133.05,72.75341204]
[1765580764631,4.63547256,133.07,133.05,10.55341204]
[1765580764835,0.81,133.08,133.05,10.55341204]
[1765580765017,4.64076768,133.07,133.05,10.55341204]
[1765580765216,0.81,133.08,133.05,10.55341204]
[1765580765419,4.64538213,133.07,133.05,10.55341204]
[1765580765623,0.81,133.08,133.05,10.55341204]
[1765580765816,4.64538213,133.07,133.06,3.74769203]
[1765580766806,4.64538213,133.07,133.06,8.22540658]
[1765580767007,4.64538213,133.07,133.06,11.26309861]
[1765580769722,4.64538213,133.07,133.06,8.22540658]
[1765580769903,4.64538213,133.07,133.06,73.46309861]
[1765580771332,4.64538213,133.07,133.06,69.71540658]
[1765580772038,5.35538213,133.07,133.06,62.2]
[1765580772421,5.35538213,133.07,133.06,69.71540658]
[1765580772734,4.64538213,133.07,133.06,69.71540658]
[1765580772910,4.64538213,133.07,133.06,62.2]
[1765580772911,5.35538213,133.07,133.06,62.2]
[1765580773437,4.64538213,133.07,133.06,73.46309861]
[1765580775232,4.64538213,133.07,133.06,81.70309861]
[1765580778911,4.64538213,133.07,133.06,78.66540658]
[1765580779116,4.64538213,133.07,133.06,81.70309861]
[1765580781126,4.64538213,133.07,133.06,78.66540658]
[1765580783356,4.64538213,133.07,133.06,77.95540658]
[1765580783544,4.64538213,133.07,133.06,78.63540658]
[1765580783946,4.14538213,133.07,133.06,81.67268325]
[1765580784340,4.14538213,133.07,133.06,78.63540658]
[1765580784718,0.1,133.08,133.06,81.67268325]
[1765580784926,0.1,133.08,133.07,3.71727667]
[1765580785338,0.1,133.08,133.07,3.03727667]
[1765580785655,0.1,133.08,133.07,78.96436787]
[1765580786631,0.1,133.08,133.07,86.47920968]
[1765580787454,0.1,133.08,133.07,14.55371829]
[1765580788339,1e-08,133.08,133.07,14.55371829]
[1765580788860,1e-08,133.08,133.07,27.60080949]
[1765580790757,1e-08,133.08,133.07,89.80080949]
[1765580792254,1e-08,133.09,133.08,0.96432314]
[1765580792448,1e-08,133.09,133.08,71.12]
[1765580792770,1e-08,133.09,133.08,74.15727667]
[1765580792965,1e-08,133.09,133.08,8.24]
[1765580793352,1e-08,133.09,133.08,11.27727667]
[1765580793545,0.65000001,133.09,133.08,18.79155379]
[1765580793751,0.65000001,133.09,133.07,7.51459466]
[1765580795058,3.68727668,133.09,133.06,15.75525647]
[1765580795438,0.65,133.08,133.06,7.51525647]
[1765580797364,0.65,133.08,133.05,7.51597143]
[1765580797565,11.20188968,133.08,133.04,8.24]
[1765580797965,0.65,133.07,133.04,8.24]
[1765580798342,0.65,133.07,133.04,7.51650038]
[1765580798554,0.65,133.07,133.03,7.5171014]
[1765580798843,3.18727667,133.07,133.03,7.5171014]
[1765580799050,3.03727667,133.07,133.03,7.5171014]
[1765580800054,3.03727667,133.08,133.03,7.5171014]
[1765580800568,3.03727667,133.08,133.03,8.1971014]
[1765580800745,0.65,133.07,133.03,8.1971014]
[1765580802469,0.65,133.07,133.03,70.3971014]
[1765580802766,8.1651303,133.07,133.03,69.7171014]
[1765580802951,11.20240697,133.07,133.03,69.7171014]
[1765580803148,0.65,133.06,133.03,69.7171014]
[1765580803464,11.20284561,133.06,133.02,15.75747925]
[1765580803673,11.20284561,133.06,133.01,62.2]
[1765580803863,3.68727667,133.05,133.01,69.71769218]
[1765580804243,0.65,133.04,133.01,69.71769218]
[1765580805771,11.20385677,133.04,133.0,8.24]
[1765580805946,11.20385677,133.04,132.98,7.5197327]
[1765580805947,3.03727667,133.03,132.98,7.5197327]
[1765580806253,3.03727667,133.03,132.98,16.4397327]
[1765580806254,0.65,133.02,132.98,16.4397327]
[1765580806957,0.65,133.02,132.99,7.51920948]
[1765580807871,0.65,133.02,132.99,8.19920948]
[1765580808482,0.65,133.02,132.99,7.51920948]
[1765580810061,0.65,133.02,132.99,8.19920948]
[1765580811574,0.65,133.02,132.99,70.39920948]
[1765580812482,0.65,133.02,132.99,69.71920948]
[1765580813078,8.16810178,133.02,132.99,62.2]
[1765580813455,8.16810178,133.02,132.99,69.71935299]
[1765580813683,0.67,133.01,132.99,69.71935299]
[1765580816085,8.1883978,133.01,132.99,62.2]
[1765580816284,8.1883978,133.01,132.96,74.15033247]
[1765580816491,0.67,133.0,132.96,74.15033247]
[1765580816997,0.67,133.0,132.96,73.48033247]
[1765580817200,0.67,133.0,132.97,8.19015854]
[1765580817383,0.67,133.0,132.97,11.23049101]
[1765580818593,0.67,133.0,132.97,8.19015854]
[1765580818811,0.67,133.0,132.97,11.23049101]
[1765580818979,0.67,133.0,132.98,3.04033247]
[1765580820409,0.67,133.0,132.97,69.72015854]
[1765580821998,0.67,133.0,132.97,73.43049101]
[1765580822373,0.67,133.02,132.98,3.71033247]
[1765580822578,0.67,133.02,132.99,3.04033247]
[1765580822797,0.67,133.02,132.99,3.71033247]
[1765580823881,0.67,133.02,132.98,75.86051979]
[1765580824497,0.67,133.02,132.99,8.18936235]
[1765580824884,0.67,133.04,133.01,4.75051979]
[1765580825083,0.67,133.03,133.01,4.75051979]
[1765580825486,8.24,133.06,133.01,4.75051979]
[1765580825705,0.67,133.04,133.02,4.75051979]
[1765580825896,0.67,133.04,133.02,5.42051979]
[1765580826482,0.67,133.04,133.03,7.5171014]
[1765580826916,0.67,133.05,133.03,7.5171014]
[1765580829511,0.67,133.05,133.02,69.7174966]
[1765580830918,8.18615718,133.05,133.02,62.2]
[1765580831285,0.67,133.04,133.02,62.2]
[1765580831593,0.67,133.04,133.02,69.71760696]
[1765580834598,0.67,133.04,133.02,62.2]
[1765580835104,0.67,133.04,133.01,69.71802246]
[1765580835289,0.67,133.04,133.01,70.38802246]
[1765580837009,0.67,133.04,133.01,69.71802246]
[1765580837805,0.67,133.04,133.01,70.38802246]
[1765580842754,21.17729316,133.04,133.01,62.2]
[1765580843017,4.75051979,133.03,133.01,62.2]
[1765580843201,5.42051979,133.03,132.98,62.87]
[1765580843400,0.67,133.02,132.98,62.87]
[1765580843721,8.18773783,133.02,132.99,7.51914893]
[1765580844101,0.67,133.01,132.99,7.51914893]
[1765580845199,0.67,133.01,132.99,8.18914893]
[1765580847125,0.67,133.01,132.99,70.38914893]
[1765580850120,8.18824261,133.01,132.96,75.86100394]
[1765580850317,8.18824261,133.01,132.96,83.3817484]
[1765580850518,0.67,133.0,132.96,83.3817484]
[1765580850923,0.67,133.0,132.97,7.52040839]
[1765580851124,8.18792039,133.02,132.98,7.51992527]
[1765580851430,0.67,133.01,132.98,12.94092921]
[1765580852318,8.18827979,133.01,132.99,4.75100394]
[1765580852519,8.18827979,133.01,132.98,67.62100394]
[1765580853120,7.51827979,133.01,132.98,67.62100394]
[1765580853318,0.67,133.0,132.98,67.62100394]
[1765580853522,0.67,133.0,132.98,62.2]
[1765580854530,0.67,133.0,132.95,0.67]
[1765580854531,8.18930735,133.0,132.95,0.67]
[1765580854834,0.67,132.99,132.95,5.42100394]
[1765580855325,0.67,132.99,132.95,0.67]
[1765580855524,0.67,132.99,132.95,5.42100394]
[1765580855903,0.67,132.99,132.95,4.75100394]
[1765580856097,0.67,132.99,132.95,5.42100394]
[1765580856631,7.5199278,132.98,132.95,5.42100394]
[1765580857123,8.1899278,132.98,132.95,5.42100394]
[1765580857927,13.0470912,132.96,132.92,5.42100394]
[1765580858428,0.67,132.95,132.92,5.42100394]
[1765580858628,8.19164304,132.95,132.92,12.94425939]
[1765580858806,8.19164304,132.95,132.92,5.42100394]
[1765580859218,8.19164304,132.95,132.93,0.67]
[1765580860707,8.19164304,132.95,132.92,0.67]
[1765580861002,7.52164304,132.95,132.91,20.51467219]
[1765580861226,0.67,132.94,132.91,21.18467219]
[1765580861519,0.67,132.94,132.92,0.67]
[1765580861722,0.67,132.94,132.89,81.01129243]
[1765580861723,0.67,132.93,132.89,67.62100394]
[1765580861926,0.67,132.93,132.89,13.66100394]
[1765580862128,0.67,132.93,132.89,12.99100394]
[1765580862431,0.67,132.93,132.9,0.67]
[1765580862807,8.19288774,132.93,132.9,0.67]
[1765580863221,7.52288774,132.93,132.89,20.51586104]
[1765580863532,0.67,132.92,132.89,21.18586104]
[1765580864434,8.19341126,132.92,132.89,67.62100394]
[1765580864734,8.24,132.95,132.91,4.75100394]
[1765580864941,15.76166461,132.95,132.92,4.75100394]
[1765580865113,16.43166461,132.95,132.92,66.95100394]
[1765580865437,16.43166461,132.95,132.92,67.62100394]
[1765580867620,16.43166461,132.95,132.93,4.75100394]
[1765580868208,16.43166461,132.95,132.92,67.62100394]
[1765580868839,0.67,132.94,132.92,62.2]
[1765580869446,0.67,132.94,132.92,62.87]
[1765580870234,8.19230481,132.94,132.92,62.87]
[1765580870829,8.19230481,132.94,132.91,67.62100394]
[1765580871334,8.19230481,132.94,132.92,0.67]
[1765580871521,0.72,132.93,132.91,62.2]
[1765580871723,7.52230481,132.94,132.92,0.67]
[1765580871724,8.24230481,132.94,132.92,0.67]
[1765580872037,7.52230481,132.94,132.92,5.42100394]
[1765580872536,13.56094886,132.98,132.93,5.42100394]
[1765580872537,36.57054118,132.98,132.93,5.42100394]
[1765580872834,0.72,132.97,132.95,4.75100394]
[1765580873208,8.24049334,132.97,132.95,4.75100394]
[1765580873636,0.72,132.96,132.95,4.75100394]
[1765580874649,0.72,132.96,132.94,5.42100394]
[1765580875021,0.72,132.96,132.94,4.75100394]
[1765580875723,8.241143,132.96,132.94,4.75100394]
[1765580876845,8.241143,132.96,132.94,5.42100394]
[1765580877515,8.241143,132.96,132.94,5.42455366]
[1765580878649,35.28106847,132.98,132.95,0.67]
[1765580878946,0.72,132.97,132.94,12.94673935]
[1765580879441,15.76047221,132.98,132.95,5.42455366]
[1765580879625,15.76047221,132.98,132.96,0.67]
[1765580879822,16.48047221,132.98,132.95,67.62455366]
[1765580880958,16.48047221,132.98,132.95,62.87]
[1765580881159,16.48047221,132.98,132.95,67.62455366]
[1765580883033,16.48047221,132.98,132.95,62.87]
[1765580883926,39.31484539,132.98,132.95,62.2]
[1765580884125,0.71,132.97,132.95,62.2]
[1765580885433,7.52105896,132.96,132.95,62.2]
[1765580885634,7.52105896,132.96,132.94,0.68]
[1765580887843,0.71,132.96,132.93,62.88]
[1765580888052,8.95,132.96,132.93,62.88]
[1765580889638,16.47158381,132.96,132.93,62.88]
[1765580889850,19.51462063,132.96,132.93,0.68]
[1765580891251,19.51462063,132.96,132.91,0.68]
[1765580891252,13.0470912,132.94,132.91,0.68]
[1765580891458,13.0470912,132.94,132.92,0.68]
[1765580892745,20.56931989,132.94,132.92,0.68]
[1765580893758,0.71,132.93,132.89,0.68]
[1765580893932,7.52173725,132.95,132.9,3.04303682]
[1765580894127,3.04303682,132.94,132.89,71.12]
[1765580894332,3.75303682,132.94,132.9,0.68]
[1765580894545,0.71,132.93,132.9,0.68]
[1765580894751,8.2331182,132.93,132.9,0.68]
[1765580902653,7.52232355,132.94,132.9,8.20415174]
[1765580902971,8.22232355,132.94,132.9,0.68]
[1765580903174,0.7,132.93,132.9,0.68]
[1765580903347,7.52232355,132.94,132.91,0.66]
[1765580903550,8.22232355,132.94,132.91,0.66]
[1765580905676,0.7,132.93,132.91,0.66]
[1765580907177,8.22249783,132.94,132.91,0.66]
[1765580908356,0.7,132.93,132.91,0.66]
[1765580908880,26.32568634,132.95,132.91,0.66]
[1765580909082,0.7,132.94,132.91,0.66]
[1765580909454,8.22245045,132.94,132.91,62.86]
[1765580913071,26.32568634,132.95,132.91,62.86]
[1765580913288,0.7,132.93,132.91,62.86]
[1765580913679,26.32568634,132.95,132.91,62.86]
[1765580913887,0.7,132.94,132.91,62.86]
[1765580914487,27.02568634,132.95,132.92,0.66]
[1765580914999,8.22254536,132.94,132.92,0.66]
[1765580915685,8.22254536,132.94,132.91,62.86]
[1765580916600,0.7,132.93,132.91,62.86]
[1765580918184,8.22291997,132.93,132.91,62.86]
[1765580918363,8.22291997,132.93,132.91,0.66]
[1765580919765,0.7,132.96,132.91,11.2280876]
[1765580920084,8.94,132.96,132.92,3.04425015]
[1765580920268,16.46105896,132.96,132.92,11.22739251]
[1765580920461,16.46105896,132.96,132.93,0.66]
[1765580920869,0.7,132.95,132.93,0.66]
[1765580921282,8.22176148,132.95,132.93,0.66]
[1765580921489,3.04425015,132.94,132.9,8.9]
[1765580921678,11.98425015,132.94,132.9,0.66]
[1765580921986,11.98425015,132.94,132.91,0.66]
[1765580922186,8.94,132.94,132.91,0.66]
[1765580922386,8.24,132.94,132.91,8.18388773]
[1765580922767,8.24,132.94,132.92,0.66]
[1765580923496,15.76226693,132.94,132.92,0.66]
[1765580927187,16.46226693,132.94,132.92,0.66]
[1765580928773,15.76226693,132.94,132.92,0.66]
[1765580929591,16.46226693,132.94,132.92,0.66]
[1765580929791,15.76226693,132.94,132.9,72.76845282]
[1765580930182,16.46226693,132.94,132.91,0.66]
[1765580933078,16.46226693,132.94,132.91,62.86]
[1765580934003,16.46226693,132.94,132.92,0.69]
[1765580935101,15.76226693,132.94,132.91,62.89]
[1765580935283,0.66,132.93,132.91,62.89]
[1765580937807,16.42226693,132.94,132.91,62.89]
[1765580939600,16.42226693,132.94,132.91,62.2]
[1765580939796,16.42226693,132.94,132.92,0.69]
[1765580940007,16.42226693,132.94,132.91,62.89]
[1765580940384,0.66,132.93,132.91,62.2]
[1765580941392,0.66,132.93,132.91,62.89]
[1765580941588,0.66,132.93,132.91,62.2]
[1765580942714,7.52332229,132.92,132.91,62.2]
[1765580943009,7.52332229,132.92,132.9,0.69]
[1765580944181,7.52332229,132.92,132.89,65.24503989]
[1765580944389,8.18332229,132.92,132.89,62.89]
[1765580945478,8.18332229,132.92,132.9,0.69]
[1765580950011,16.42332229,132.92,132.9,0.69]
[1765580953705,15.76332229,132.92,132.9,0.69]
[1765580954008,16.42332229,132.92,132.9,0.69]
[1765580958021,15.76332229,132.92,132.89,62.2]
[1765580958190,16.42332229,132.92,132.9,0.69]
[1765580965910,16.42332229,132.92,132.89,62.9]
[1765580967121,16.42332229,132.92,132.9,0.7]
[1765580968119,0.66,132.91,132.89,62.2]
[1765580969001,8.24,132.9,132.89,62.2]
[1765580969409,8.9,132.9,132.89,62.2]
[1765580969900,16.425018,132.9,132.88,0.2]
[1765580971919,15.765018,132.9,132.88,0.2]
[1765580972230,0.66,132.89,132.88,0.2]
[1765580972924,8.18502069,132.89,132.88,0.2]
[1765580975732,21.75469439,132.89,132.88,0.2]
[1765580977230,16.99496561,132.89,132.88,0.2]
[1765580996745,22.03901753,132.89,132.88,0.2]
[1765580997123,27.64874631,132.89,132.88,0.2]
[1765580998834,22.88901753,132.89,132.88,0.2]
[1765580999150,27.64874631,132.89,132.88,0.2]
[1765581001149,27.64874631,132.89,132.86,0.2]
[1765581001150,22.14135926,132.87,132.86,1e-08]
[1765581001355,35.84108804,132.87,132.86,1e-08]
[1765581001731,38.85642858,132.87,132.86,1e-08]
[1765581002247,21.2870912,132.87,132.86,0.65000001]
[1765581002448,28.81324458,132.87,132.86,0.65000001]
[1765581002752,7.52615338,132.87,132.86,0.65000001]
[1765581002957,15.76615338,132.87,132.86,0.65000001]
[1765581006746,24.5760983,132.87,132.86,1e-08]
[1765581012054,25.2760983,132.87,132.86,1e-08]
[1765581012550,24.5760983,132.87,132.86,1e-08]
[1765581015574,25.2760983,132.87,132.86,1e-08]
[1765581025085,28.32334976,132.87,132.86,1e-08]
[1765581025262,31.33823575,132.87,132.86,1e-08]
[1765581025457,8.80994492,132.86,132.85,1e-08]
[1765581025676,25.87861072,132.86,132.85,1e-08]
[1765581025869,33.40533057,132.86,132.85,1e-08]
[1765581026182,56.02379477,132.86,132.85,1e-08]
[1765581027078,46.02395503,132.86,132.85,1e-08]
[1765581027275,11.85719638,132.82,132.79,0.2]
[1765581027478,8.24,132.81,132.79,0.2]
[1765581027775,8.80994492,132.8,132.79,0.89]
[1765581029558,16.3400654,132.8,132.79,0.89]
[1765581031464,16.3400654,132.8,132.79,0.2]
[1765581031786,17.0300654,132.8,132.79,0.2]
[1765581033175,16.3400654,132.8,132.79,0.2]
[1765581033355,16.3400654,132.8,132.79,0.89]
[1765581033774,16.3400654,132.8,132.79,0.2]
[1765581035386,17.0300654,132.8,132.79,0.2]
[1765581042577,23.09734361,132.8,132.79,0.2]
[1765581044295,23.38166675,132.8,132.79,0.2]
[1765581053377,20.33086604,132.8,132.79,0.2]
[1765581053594,19.3565429,132.8,132.79,0.91]
[1765581053783,27.6165429,132.8,132.79,0.91]
[1765581054184,24.6000654,132.8,132.79,0.91]
[1765581060004,27.65086611,132.8,132.79,0.2]
[1765581060212,28.30086611,132.8,132.79,0.2]
[1765581060611,27.65086611,132.8,132.79,0.2]
[1765581060910,0.28432314,132.79,132.78,0.2]
[1765581061111,12.79506877,132.79,132.78,0.2]
[1765581062899,20.32575632,132.79,132.78,0.2]
[1765581065439,20.18359475,132.79,132.78,0.2]
[1765581067312,20.18507353,132.79,132.78,0.2]
[1765581068626,20.3272351,132.79,132.78,0.2]
[1765581069123,20.3272351,132.79,132.77,0.2]
[1765581069332,34.10363875,132.78,132.77,0.2]
[1765581069905,35.8209234,132.78,132.77,0.2]
[1765581070523,35.67876183,132.78,132.77,0.2]
[1765581070729,43.21001653,132.78,132.77,0.2]
[1765581073323,43.3521781,132.78,132.77,0.2]
[1765581074223,43.3521781,132.78,132.77,0.91]
[1765581074224,29.38829082,132.78,132.77,0.91]
[1765581074539,37.64829082,132.78,132.77,0.91]
[1765581074938,37.64829082,132.78,132.77,0.2]
[1765581075119,43.06785496,132.78,132.77,0.2]
[1765581075530,37.64829082,132.78,132.77,0.2]
[1765581075723,29.38829082,132.78,132.77,0.91]
[1765581075928,37.64829082,132.78,132.77,0.2]
[1765581078618,42.41785496,132.78,132.77,0.2]
[1765581080053,43.11785496,132.78,132.77,0.2]
[1765581080234,42.41785496,132.78,132.77,0.2]
[1765581082640,43.4021781,132.78,132.77,0.2]
[1765581084823,30.3550869,132.78,132.77,1e-08]
[1765581085049,21.85703612,132.75,132.74,0.2]
[1765581085254,30.11703612,132.75,132.74,0.86]
[1765581085445,21.3070912,132.75,132.74,0.86]
[1765581086854,28.84004788,132.75,132.74,0.86]
[1765581087057,7.53295668,132.75,132.74,0.86]
[1765581087238,20.58004788,132.75,132.74,0.86]
[1765581087433,15.79259029,132.76,132.74,0.86]
[1765581087750,15.79259029,132.76,132.75,0.66]
[1765581095252,8.26,132.76,132.75,0.66]
[1765581095466,8.26,132.78,132.75,5.42956414]
[1765581095775,8.26,132.78,132.76,4.76956414]
[1765581095944,8.26,132.78,132.76,5.42956414]
[1765581096150,15.7912547,132.78,132.77,0.66]
[1765581098050,8.26,132.78,132.77,0.66]
[1765581098554,8.26,132.78,132.77,5.42956414]
[1765581099165,8.26,132.78,132.77,5.42681969]
[1765581100470,8.26,132.78,132.77,0.66]
[1765581102280,18.82294815,132.82,132.77,5.42681969]
[1765581102472,8.26,132.81,132.79,4.76681969]
[1765581103072,8.26,132.81,132.8,0.66]
[1765581103275,15.78967779,132.81,132.8,0.66]
[1765581105504,43.42350645,132.81,132.79,0.66]